bitfinex/quotes_SOLUSD_20260304
["timestamp","ask_amount","ask_price","bid_price","bid_amount"]
[1772635544394,0.28432314,89.629,89.567,4.5]
[1772635544574,15.70059239,89.63,89.567,4.5]
[1772635544775,0.28432314,89.648,89.567,4.5]
[1772635545086,15.70059239,89.64,89.567,4.5]
[1772635545465,39.04114936,89.649,89.566,39.07732844]
[1772635545466,0.28432314,89.619,89.566,11.16495098]
[1772635545682,0.28432314,89.648,89.567,4.5]
[1772635545866,3.69383402,89.659,89.569,4.5]
[1772635545867,15.70059239,89.64,89.569,4.5]
[1772635547203,15.70059239,89.62,89.569,4.5]
[1772635547490,39.04202036,89.647,89.569,4.5]
[1772635547862,39.04550473,89.639,89.571,4.5]
[1772635548071,15.70059239,89.62,89.571,4.5]
[1772635548475,15.70059239,89.62,89.515,44.68489779]
[1772635548476,15.70059239,89.6,89.551,11.16680391]
[1772635548664,15.70059239,89.59,89.551,11.16680391]
[1772635549081,15.70059239,89.58,89.541,11.16806825]
[1772635549465,15.70059239,89.58,89.54,0.280974]
[1772635549466,15.70059239,89.57,89.54,0.280974]
[1772635549965,15.70059239,89.59,89.541,39.08823889]
[1772635550400,15.70059239,89.58,89.541,11.16806825]
[1772635550575,0.28432314,89.589,89.541,39.08823889]
[1772635551279,27.90085153,89.603,89.54,0.280974]
[1772635551280,0.28432314,89.579,89.54,0.280974]
[1772635551585,27.90085153,89.603,89.54,0.280974]
[1772635551586,15.70059239,89.56,89.54,1e-08]
[1772635552073,11.16582364,89.559,89.54,1e-08]
[1772635552592,0.28432314,89.603,89.54,1e-08]
[1772635552771,15.70059239,89.58,89.54,1e-08]
[1772635552973,0.28432314,89.603,89.54,1e-08]
[1772635553187,15.70059239,89.58,89.54,1e-08]
[1772635553795,15.70059239,89.57,89.512,4.5]
[1772635553996,139.49803027,89.607,89.471,4.5]
[1772635553997,0.28432314,89.566,89.471,4.5]
[1772635554187,39.07776474,89.565,89.476,4.5]
[1772635554390,0.28432314,89.564,89.476,4.5]
[1772635554581,39.07776474,89.565,89.476,4.5]
[1772635555087,15.70059239,89.56,89.484,4.5]
[1772635555332,0.14216157,89.559,89.484,4.5]
[1772635555589,15.70059239,89.54,89.484,4.5]
[1772635556090,39.08038275,89.559,89.486,4.5]
[1772635556294,15.70059239,89.6,89.489,3.97815716]
[1772635556588,39.06206403,89.601,89.5,4.78432314]
[1772635556981,39.06206403,89.601,89.512,4.78432314]
[1772635557384,39.06206403,89.601,89.514,4.5]
[1772635557385,11.16058972,89.601,89.514,4.5]
[1772635557565,11.15987625,89.607,89.519,4.78432314]
[1772635558074,9.78935914,89.56,89.507,4.5]
[1772635558379,9.78935914,89.54,89.493,4.5]
[1772635558774,9.78935914,89.54,89.493,15.6740583]
[1772635559380,3.69383402,89.597,89.494,4.5]
[1772635559577,4.82477569,89.605,89.494,4.5]
[1772635559805,9.78935914,89.56,89.494,4.5]
[1772635560004,39.08038275,89.559,89.496,4.5]
[1772635560384,44.64811525,89.59,89.495,39.10833007]
[1772635560385,9.78935914,89.59,89.499,4.78432314]
[1772635560581,44.62940854,89.627,89.507,4.78432314]
[1772635560886,9.78935914,89.59,89.507,4.5]
[1772635561098,9.78935914,89.6,89.512,0.28432314]
[1772635561298,9.78935914,89.6,89.515,4.5]
[1772635561496,100.41616922,89.627,89.515,4.5]
[1772635561702,9.78935914,89.61,89.525,4.5]
[1772635562201,9.78935914,89.6,89.527,4.5]
[1772635562403,9.78935914,89.59,89.527,4.5]
[1772635562589,9.78935914,89.58,89.527,4.5]
[1772635562783,44.61969024,89.647,89.527,4.5]
[1772635563105,9.78935914,89.64,89.532,0.28432314]
[1772635563310,9.78935914,89.64,89.528,1.11696899]
[1772635563311,39.04245587,89.646,89.538,4.78432314]
[1772635563610,11.15038524,89.683,89.553,3.69383402]
[1772635563791,44.57977149,89.727,89.552,4.78432314]
[1772635563792,9.19401759,89.753,89.566,0.28432314]
[1772635564109,9.19401759,89.753,89.565,4.82477569]
[1772635564110,9.78935914,89.75,89.597,8.80293285]
[1772635564284,9.78935914,89.73,89.597,8.80293285]
[1772635564484,9.78935914,89.71,89.597,8.80293285]
[1772635564681,11.14044762,89.763,89.61,3.69383402]
[1772635564910,11.14044762,89.763,89.614,5.10909883]
[1772635565110,34.68640969,89.793,89.63,5.10909883]
[1772635565297,34.68640969,89.793,89.594,541.33089268]
[1772635565298,11.13908258,89.774,89.654,5.10909883]
[1772635565500,11.13660251,89.794,89.682,0.14216157]
[1772635565700,9.78935914,89.79,89.686,0.28432314]
[1772635565902,9.78935914,89.8,89.698,0.28432314]
[1772635566095,9.78935914,89.8,89.742,4.5]
[1772635566294,11.13761238,89.786,89.742,4.5]
[1772635566496,15.63391578,89.81,89.742,4.5]
[1772635566709,15.63391578,89.82,89.742,4.5]
[1772635566892,15.63391578,89.8,89.742,4.5]
[1772635567092,15.63391578,89.81,89.742,4.5]
[1772635567297,217.05012186,89.841,89.734,11.14393827]
[1772635567298,6.88631256,89.809,89.734,11.14393827]
[1772635567606,15.63391578,89.78,89.727,4.5]
[1772635567904,261.57322378,89.841,89.728,4.5]
[1772635567905,15.63391578,89.8,89.728,4.5]
[1772635568214,6.88738259,89.799,89.734,4.5]
[1772635568794,6.89787469,89.847,89.744,4.5]
[1772635569096,6.89787469,89.847,89.754,4.5]
[1772635569097,38.95554615,89.846,89.754,4.5]
[1772635569301,6.89787469,89.847,89.729,261.89972025]
[1772635569302,6.89787469,89.847,89.759,4.78432314]
[1772635569887,6.89787469,89.847,89.767,3.69383402]
[1772635570113,6.89787469,89.847,89.729,328.76773393]
[1772635570114,6.89787469,89.847,89.778,4.78432314]
[1772635570338,0.2,89.86,89.783,4.82477569]
[1772635570617,6.89566517,89.887,89.812,4.5]
[1772635570787,6.89566517,89.887,89.824,4.5]
[1772635570990,6.89566517,89.887,89.788,3.69383402]
[1772635570991,15.63391578,89.92,89.832,4.5]
[1772635571212,11.12359425,89.899,89.834,4.5]
[1772635571512,38.93257988,89.899,89.834,4.5]
[1772635572011,15.83391578,89.9,89.774,272.90752332]
[1772635572012,0.2,89.9,89.847,0.28432314]
[1772635572210,0.2,89.9,89.854,4.5]
[1772635572407,11.12359425,89.899,89.854,4.5]
[1772635572599,0.2,89.9,89.854,4.5]
[1772635572803,0.198,89.983,89.864,0.28432314]
[1772635573008,15.63391578,89.96,89.875,4.4]
[1772635573201,0.198,89.968,89.875,4.4]
[1772635573406,0.198,89.968,89.885,4.4]
[1772635573606,0.198,89.969,89.894,0.28432314]
[1772635573796,0.198,89.969,89.895,4.4]
[1772635574009,38.89839738,89.978,89.897,4.4]
[1772635574415,38.89839738,89.978,89.9,0.28432314]
[1772635574723,11.11382782,89.978,89.911,4.4]
[1772635575012,0.2,89.99,89.896,127.9256029]
[1772635575013,0.2,89.99,89.935,4.4]
[1772635575235,15.63391578,90.02,89.944,4.4]
[1772635575403,15.63391578,89.99,89.909,4.68432314]
[1772635575600,15.63391578,89.98,89.909,4.4]
[1772635575904,0.198,90.004,89.925,4.4]
[1772635576104,83.31481891,90.02,89.935,4.4]
[1772635576419,38.88024882,90.02,89.945,4.4]
[1772635576620,15.63391578,90.0,89.873,4.4]
[1772635576823,15.63391578,89.92,89.873,4.4]
[1772635576997,15.63391578,89.93,89.873,4.4]
[1772635577199,0.198,89.932,89.873,4.4]
[1772635577423,0.28432314,90.01,89.873,4.4]
[1772635577600,0.28432314,89.947,89.873,4.4]
[1772635578010,0.28432314,89.923,89.856,4.4]
[1772635578301,15.63391578,89.9,89.831,4.43655025]
[1772635578615,0.198,89.879,89.788,4.43655025]
[1772635578917,0.198,89.869,89.8,4.43655025]
[1772635579121,0.198,89.899,89.8,4.43655025]
[1772635579423,15.63391578,89.89,89.81,4.43655025]
[1772635579797,0.198,89.899,89.81,4.43655025]
[1772635579997,44.46006023,89.969,89.824,4.43655025]
[1772635580215,15.63391578,89.96,89.844,4.72087339]
[1772635580416,3.69383402,89.957,89.855,4.43655025]
[1772635580720,15.63391578,89.96,89.869,4.43655025]
[1772635580721,0.198,89.949,89.869,4.43655025]
[1772635580914,39.09423595,89.983,89.887,4.43655025]
[1772635581116,0.198,89.979,89.889,4.43655025]
[1772635581304,0.198,89.979,89.893,4.43655025]
[1772635581500,0.198,89.979,89.899,4.43655025]
[1772635581902,11.11321027,89.983,89.909,4.43655025]
[1772635582196,11.11321027,89.983,89.758,60.49941893]
[1772635582197,11.11172842,89.995,89.919,4.43655025]
[1772635582401,44.41840461,90.053,89.91,127.90568344]
[1772635582402,11.10765539,90.028,89.93,0.28432314]
[1772635582625,11.10765539,90.028,89.91,216.88355018]
[1772635582626,0.198,90.041,89.941,4.43655025]
[1772635582802,0.198,89.968,89.849,4.43655025]
[1772635583006,0.198,89.949,89.857,4.43655025]
[1772635583203,0.198,89.947,89.857,4.43655025]
[1772635583611,0.198,89.947,89.842,44.52251136]
[1772635583612,15.63391578,89.94,89.859,4.4]
[1772635584102,38.91223623,89.946,89.861,4.4]
[1772635584298,0.198,89.943,89.861,4.4]
[1772635584505,15.63391578,89.91,89.845,4.4]
[1772635584700,0.198,89.919,89.845,4.4]
[1772635585119,15.63391578,89.93,89.845,4.4]
[1772635585343,38.91223623,89.946,89.845,4.4]
[1772635585627,38.91223623,89.946,89.859,4.4]
[1772635585824,11.11778178,89.946,89.869,4.4]
[1772635586034,38.91223623,89.946,89.869,4.4]
[1772635586232,38.906613,89.959,89.871,4.4]
[1772635586420,38.906613,89.959,89.879,4.4]
[1772635586731,0.198,89.958,89.879,4.4]
[1772635587029,38.906613,89.959,89.879,4.4]
[1772635587416,11.11617514,89.959,89.879,4.4]
[1772635587620,38.906613,89.959,89.879,4.4]
[1772635587829,11.11617514,89.959,89.889,4.4]
[1772635588015,0.198,89.995,89.899,4.4]
[1772635588325,0.198,89.995,89.901,4.4]
[1772635588526,44.4290647,90.032,89.909,4.4]
[1772635588527,38.89148165,89.994,89.909,4.4]
[1772635588716,38.89148165,89.994,89.919,4.4]
[1772635588916,11.1118519,89.994,89.919,4.4]
[1772635589225,0.198,89.999,89.929,4.4]
[1772635589435,0.198,89.989,89.901,4.68432314]
[1772635589631,0.198,89.979,89.901,4.4]
[1772635589814,0.198,89.969,89.901,4.4]
[1772635590132,0.198,90.018,89.915,4.4]
[1772635590322,0.198,90.018,89.919,4.4]
[1772635590627,0.198,90.018,89.914,38.92608492]
[1772635590628,0.198,90.052,89.941,4.4]
[1772635590843,0.198,90.052,89.959,4.4]
[1772635591023,44.40306077,90.084,89.969,4.4]
[1772635591024,0.198,90.069,89.969,4.4]
[1772635591211,11.30059911,90.069,89.987,4.4]
[1772635591531,0.28432314,90.056,89.987,4.4]
[1772635591832,11.10259911,90.069,89.945,4.4]
[1772635591833,15.5619569,90.01,89.945,4.4]
[1772635592033,0.198,90.016,89.945,4.4]
[1772635592237,15.5619569,90.01,89.946,11.11778178]
[1772635592425,15.5619569,90.01,89.947,4.4]
[1772635592617,0.28432314,90.014,89.947,4.4]
[1772635592819,0.198,89.999,89.93,4.4]
[1772635593012,0.28432314,89.979,89.912,4.4]
[1772635593216,15.5619569,89.96,89.896,4.4]
[1772635593536,0.28432314,89.959,89.896,4.4]
[1772635593923,15.5619569,89.95,89.896,4.4]
[1772635594123,0.28432314,89.959,89.896,4.4]
[1772635594330,15.5619569,89.95,89.897,11.12384172]
[1772635594633,38.9070455,89.958,89.897,11.12384172]
[1772635594634,0.28432314,89.957,89.898,4.4]
[1772635594811,83.37224036,89.958,89.877,11.12631707]
[1772635595131,0.198,89.909,89.851,4.4]
[1772635595521,0.198,89.899,89.834,4.4]
[1772635595712,0.28432314,89.898,89.834,4.4]
[1772635595914,0.28432314,89.879,89.816,11.13387369]
[1772635596113,0.28432314,89.879,89.796,27.84059439]
[1772635596331,0.28432314,89.876,89.799,4.4]
[1772635596512,0.198,89.867,89.799,4.4]
[1772635597322,3.69383402,89.877,89.799,4.4]
[1772635597523,0.28432314,89.876,89.799,4.4]
[1772635597729,0.28432314,89.877,89.799,4.4]
[1772635597928,0.198,89.876,89.799,4.4]
[1772635598131,0.198,89.869,89.799,4.4]
[1772635598421,0.28432314,89.878,89.801,4.4]
[1772635598422,0.198,89.864,89.801,4.4]
[1772635598634,38.94600969,89.868,89.801,4.4]
[1772635598635,11.12743134,89.868,89.801,4.4]
[1772635598932,0.28432314,89.896,89.817,4.4]
[1772635599115,39.12062182,89.922,89.817,4.4]
[1772635599320,0.14216157,89.918,89.817,4.4]
[1772635599537,15.5619569,89.92,89.827,4.4]
[1772635599538,3.69383402,89.917,89.827,4.4]
[1772635599739,0.198,89.922,89.847,4.4]
[1772635599940,38.90228856,89.969,89.86,4.78332313]
[1772635600237,11.11493959,89.969,89.866,4.78332313]
[1772635600434,11.11493959,89.969,89.861,1.11282981]
[1772635600435,15.5619569,90.0,89.888,4.49899999]
[1772635600635,15.5619569,89.99,89.9,4.49899999]
[1772635601133,15.5619569,89.98,89.9,4.49899999]
[1772635601338,15.5619569,89.91,89.837,4.49899999]
[1772635601637,15.5619569,90.0,89.821,4.49899999]
[1772635601638,15.5619569,89.89,89.821,4.49899999]
[1772635601829,0.14216157,89.896,89.821,4.49899999]
[1772635602032,0.28432314,89.889,89.821,4.49899999]
[1772635602332,3.69383402,89.907,89.791,44.54740603]
[1772635602333,3.69383402,89.907,89.823,4.49899999]
[1772635602526,0.28432314,89.901,89.823,4.49899999]
[1772635602920,0.28432314,89.889,89.823,4.49899999]
[1772635603341,15.5619569,89.89,89.823,4.49899999]
[1772635603518,0.28432314,89.899,89.823,4.49899999]
[1772635604028,15.5619569,89.9,89.822,38.96595488]
[1772635604029,11.12213884,89.911,89.829,4.49899999]
[1772635604341,39.06175368,89.929,89.847,4.49899999]
[1772635604546,38.91959211,89.929,89.847,4.49899999]
[1772635604838,15.5619569,89.9,89.846,11.13015604]
[1772635605040,0.28432314,89.899,89.846,11.13015604]
[1772635605241,0.28432314,89.889,89.83,4.49899999]
[1772635605432,15.5619569,89.88,89.83,11.13213702]
[1772635605637,0.28432314,89.879,89.83,11.13213702]
[1772635605827,0.28432314,89.879,89.814,11.13412162]
[1772635606137,272.43714482,89.929,89.815,4.49899999]
[1772635606138,5.10909883,89.899,89.815,4.49899999]
[1772635606327,4.41127656,89.889,89.807,55.67494737]
[1772635606522,0.28432314,89.886,89.814,27.83530407]
[1772635606721,4.6955997,89.879,89.814,27.83530407]
[1772635607126,4.41127656,89.869,89.814,27.83530407]
[1772635607734,15.5619569,89.88,89.814,27.83530407]
[1772635607735,0.28432314,89.877,89.814,27.83530407]
[1772635608051,4.6955997,89.875,89.814,27.83530407]
[1772635608426,4.46004734,89.873,89.814,27.83530407]
[1772635608827,4.1757242,89.869,89.814,27.83530407]
[1772635609046,11.1253268,89.885,89.815,4.13778342]
[1772635609254,11.12434768,89.893,89.815,4.13778342]
[1772635609740,11.12434768,89.893,89.825,4.13778342]
[1772635609948,11.12434768,89.893,89.814,27.83530407]
[1772635609949,15.5619569,89.95,89.835,4.13778342]
[1772635610143,4.1757242,89.949,89.855,4.13778342]
[1772635610342,0.55613043,89.955,89.868,4.13778342]
[1772635610651,0.55613043,89.955,89.875,4.42210656]
[1772635611026,0.55613043,89.955,89.879,4.42210656]
[1772635611240,4.1757242,89.983,89.885,3.83599559]
[1772635611443,4.1757242,89.983,89.894,4.13778342]
[1772635611650,4.46004734,89.981,89.894,4.13778342]
[1772635611843,4.1757242,89.981,89.894,4.13778342]
[1772635612345,11.11160496,89.996,89.906,4.42210656]
[1772635612550,4.1757242,89.995,89.909,4.42210656]
[1772635613429,4.46004734,89.989,89.909,4.13778342]
[1772635613633,0.28432314,89.975,89.905,38.92998163]
[1772635613839,0.28432314,89.959,89.894,11.12421296]
[1772635614025,0.28432314,89.959,89.894,38.93474536]
[1772635614440,15.5619569,89.94,89.873,11.12681227]
[1772635614644,0.28432314,89.929,89.873,38.94384296]
[1772635615450,0.28432314,89.936,89.873,38.94384296]
[1772635615745,0.28432314,89.957,89.874,4.13778342]
[1772635616043,0.14216157,89.923,89.873,38.94384296]
[1772635616250,4.31788577,89.923,89.873,11.12681227]
[1772635616438,4.31788577,89.923,89.858,38.95034386]
[1772635616439,4.1757242,89.915,89.858,38.95034386]
[1772635616640,4.1757242,89.913,89.858,38.95034386]
[1772635616839,15.5619569,89.91,89.858,38.95034386]
[1772635617142,4.1757242,89.908,89.858,38.95034386]
[1772635617739,11.11987437,89.93,89.859,4.13778342]
[1772635618245,4.46004734,89.925,89.859,4.13778342]
[1772635618450,4.1757242,89.939,89.861,4.13778342]
[1772635618650,4.82477569,89.965,89.86,83.4631649]
[1772635618651,4.1757242,89.978,89.881,4.13778342]
[1772635618831,4.1757242,89.978,89.863,3.69383402]
[1772635618832,4.1757242,89.973,89.885,4.13778342]
[1772635619028,4.1757242,89.973,89.895,4.13778342]
[1772635619554,11.1137043,89.979,89.905,4.13778342]
[1772635619732,27.77747694,90.001,89.912,0.28432314]
[1772635619928,15.28683531,90.0,89.925,4.13778342]
[1772635620337,0.28432314,89.979,89.896,4.13778342]
[1772635620531,11.11382782,89.978,89.903,4.13778342]
[1772635620730,38.89839738,89.978,89.904,0.28432314]
[1772635620940,11.25388999,89.995,89.915,4.13778342]
[1772635621148,11.11172842,89.995,89.925,4.13778342]
[1772635621653,11.10989583,90.01,89.935,4.13778342]
[1772635622037,0.28432314,90.008,89.935,4.13778342]
[1772635622449,11.25228511,90.008,89.937,4.13778342]
[1772635622637,0.14216157,89.999,89.937,4.13778342]
[1772635622837,4.1757242,89.99,89.936,11.11901796]
[1772635623054,0.28432314,89.966,89.905,11.12285189]
[1772635623356,4.1757242,89.929,89.875,4.13778342]
[1772635623546,4.1757242,89.927,89.875,4.13778342]
[1772635623739,4.46004734,89.924,89.876,11.12644087]
[1772635623940,4.1757242,89.922,89.876,11.12644087]
[1772635624134,4.1757242,89.913,89.857,38.95077733]
[1772635624340,4.1757242,89.913,89.858,4.13778342]
[1772635624555,15.5619569,89.92,89.823,89.06348633]
[1772635624556,4.1757242,89.907,89.835,4.13778342]
[1772635624753,0.28432314,89.906,89.835,4.13778342]
[1772635624936,11.12248075,89.908,89.835,4.13778342]
[1772635624937,0.14216157,89.898,89.835,4.13778342]
[1772635625138,4.1757242,89.893,89.835,4.13778342]
[1772635625658,4.46004734,89.888,89.828,4.13778342]
[1772635625852,4.82477569,89.905,89.789,4.13778342]
[1772635625853,4.46004734,89.879,89.789,4.13778342]
[1772635626260,4.46004734,89.879,89.795,4.13778342]
[1772635626437,0.28432314,89.893,89.801,4.13778342]
[1772635626638,0.28432314,89.893,89.804,4.13778342]
[1772635626837,11.12421296,89.894,89.824,4.13778342]
[1772635627039,11.12356449,89.9,89.824,4.13778342]
[1772635627450,4.1757242,89.931,89.834,4.13778342]
[1772635627653,15.5619569,89.96,89.846,4.13778342]
[1772635627939,15.5619569,89.96,89.83,1.11321384]
[1772635627940,11.11555674,89.965,89.875,0.14216157]
[1772635628140,11.11555674,89.965,89.884,4.13778342]
[1772635628359,4.1757242,89.985,89.894,4.13778342]
[1772635628540,4.1757242,89.999,89.901,4.42210656]
[1772635628740,0.28432314,89.986,89.901,4.42210656]
[1772635628943,4.1757242,89.987,89.901,4.42210656]
[1772635629136,4.1757242,90.006,89.901,4.42210656]
[1772635629357,4.1757242,89.969,89.901,4.13778342]
[1772635629566,0.28432314,89.968,89.901,4.13778342]
[1772635629858,4.1757242,89.963,89.901,4.13778342]
[1772635630063,4.1757242,89.993,89.913,4.13778342]
[1772635630262,4.1757242,89.989,89.913,4.13778342]
[1772635630560,4.1757242,89.993,89.917,4.13778342]
[1772635630755,4.1757242,90.009,89.925,4.13778342]
[1772635630953,4.1757242,90.009,89.927,4.13778342]
[1772635631158,4.1757242,90.009,89.935,4.13778342]
[1772635631457,44.42303125,90.044,89.916,272.4765336]
[1772635631458,15.5619569,90.07,89.95,0.14216157]
[1772635631655,15.5619569,90.07,89.969,4.13778342]
[1772635631849,15.5619569,90.07,89.937,3.69383402]
[1772635631850,4.1757242,90.059,89.975,4.13778342]
[1772635632052,4.1757242,90.078,89.985,4.13778342]
[1772635632348,4.1757242,90.062,89.985,4.13778342]
[1772635632561,83.26024932,90.079,89.928,1.11200071]
[1772635632562,4.46004734,90.057,89.987,4.13778342]
[1772635632761,4.1757242,90.057,89.987,4.13778342]
[1772635632973,11.10235258,90.071,89.99,4.42210656]
[1772635633264,11.10136657,90.079,90.003,4.13778342]
[1772635633440,1e-08,90.08,90.01,0.28432314]
[1772635633639,1e-08,90.08,90.025,4.13778342]
[1772635633867,1e-08,90.08,90.035,4.13778342]
[1772635634042,1e-08,90.08,89.989,3.69383402]
[1772635634043,4.1757242,90.143,90.048,4.13778342]
[1772635634247,4.1757242,90.143,90.027,3.69383402]
[1772635634248,4.1757242,90.143,90.054,4.13778342]
[1772635634478,4.1757242,90.143,90.056,4.42210656]
[1772635634762,4.1757242,90.129,90.056,4.13778342]
[1772635634945,4.1757242,90.119,90.056,4.13778342]
[1772635635343,5.18354581,90.135,90.06,4.13778342]
[1772635635542,5.18354581,90.135,90.055,216.53434008]
[1772635635543,9.07990629,90.147,90.074,4.33736209]
[1772635635743,9.07990629,90.147,90.082,4.33736209]
[1772635635962,1e-08,90.14,90.084,4.33736209]
[1772635636260,11.09397707,90.139,90.084,4.33736209]
[1772635636464,1e-08,90.14,90.084,4.33736209]
[1772635636465,1e-08,90.14,90.085,11.10062718]
[1772635636666,1e-08,90.14,90.084,4.33736209]
[1772635636667,15.5619569,90.13,90.069,11.10259911]
[1772635636841,15.5619569,90.13,90.025,44.43173166]
[1772635636842,0.28432314,90.119,90.053,11.10457175]
[1772635637166,1e-08,90.14,90.053,11.10457175]
[1772635637167,15.5619569,90.13,90.054,4.33736209]
[1772635637361,1e-08,90.14,90.054,4.33736209]
[1772635637662,0.28432314,90.128,90.054,4.33736209]
[1772635637880,0.60634619,90.128,90.054,4.33736209]
[1772635638056,0.28432314,90.119,90.054,4.33736209]
[1772635638359,0.32202305,90.109,90.053,11.10457175]
[1772635638749,0.32202305,90.099,90.04,27.76525411]
[1772635638951,0.32202305,90.082,90.031,11.10722294]
[1772635639474,0.28432314,90.075,90.003,4.33736209]
[1772635639651,0.32202305,90.063,90.004,11.1106173]
[1772635639847,0.28432314,90.088,90.005,4.33736209]
[1772635640047,0.28432314,90.076,90.005,4.33736209]
[1772635640565,0.32202305,90.083,90.005,4.33736209]
[1772635640768,0.32202305,90.083,89.964,4.82477569]
[1772635640769,11.09816325,90.105,90.013,4.33736209]
[1772635640974,0.32202305,90.099,90.017,4.33736209]
[1772635641145,0.32202305,90.096,90.022,0.28432314]
[1772635641344,0.32202305,90.089,90.012,4.33736209]
[1772635641644,15.5619569,90.04,89.978,4.33736209]
[1772635641850,0.32202305,90.019,89.962,11.11580445]
[1772635642166,0.28432314,90.029,89.962,11.11580445]
[1772635642167,0.60634619,90.029,89.963,4.33736209]
[1772635642358,15.5619569,90.02,89.963,4.33736209]
[1772635642669,4.82477569,90.053,89.962,38.90531557]
[1772635642670,15.5619569,90.01,89.962,11.11580445]
[1772635642846,11.11000011,90.009,89.95,4.33736209]
[1772635643049,0.28432314,90.027,89.95,4.33736209]
[1772635643247,11.10765539,90.028,89.954,4.33736209]
[1772635643447,0.28432314,90.027,89.954,4.33736209]
[1772635643760,0.28432314,90.027,89.949,27.79352241]
[1772635643761,0.14216157,90.059,89.967,0.28432314]
[1772635643961,11.10148981,90.078,89.985,0.28432314]
[1772635644148,0.32202305,90.099,89.994,4.33736209]
[1772635644558,0.32202305,90.089,89.994,4.33736209]
[1772635644767,15.5619569,90.08,90.008,4.33736209]
[1772635644949,0.14216157,90.066,90.005,38.88672851]
[1772635645265,0.28432314,90.065,90.005,38.88672851]
[1772635645566,11.10025752,90.088,90.012,4.33736209]
[1772635645753,3.69383402,90.085,90.012,4.33736209]
[1772635645949,11.09816325,90.105,90.026,4.33736209]
[1772635646163,0.32202305,90.099,90.026,4.33736209]
[1772635646469,15.5619569,90.1,90.005,216.65463027]
[1772635646470,0.14216157,90.077,90.006,4.33736209]
[1772635646669,0.32202305,90.066,90.006,4.33736209]
[1772635646868,0.28432314,90.075,89.988,3.69383402]
[1772635646869,0.28432314,90.075,90.008,4.33736209]
[1772635647066,0.32202305,90.117,90.016,4.33736209]
[1772635647268,15.5619569,90.1,90.022,4.33736209]
[1772635647567,0.32202305,90.106,90.032,4.33736209]
[1772635647765,99.85576387,90.13,90.01,3.69383402]
[1772635647766,15.5619569,90.12,90.042,4.33736209]
[1772635647971,0.32202305,90.119,90.042,4.33736209]
[1772635648268,0.32202305,90.119,89.916,66.7284431]
[1772635648269,11.09508487,90.13,90.055,0.14216157]
[1772635648456,15.5619569,90.11,90.046,4.33736209]
[1772635648650,0.32202305,90.099,90.031,0.28432314]
[1772635648849,0.28432314,90.096,90.034,4.33736209]
[1772635649270,0.28432314,90.096,90.033,38.87463485]
[1772635649271,15.5619569,90.08,90.033,38.87463485]
[1772635649470,15.5619569,90.08,90.033,11.10703853]
[1772635649770,0.32202305,90.086,90.033,11.10703853]
[1772635649950,0.28432314,90.095,90.034,4.33736209]
[1772635650155,0.32202305,90.11,90.036,4.33736209]
[1772635650353,11.09397707,90.139,90.058,4.33736209]
[1772635650667,11.09397707,90.139,90.072,4.33736209]
[1772635650973,27.73494269,90.139,90.08,4.33736209]
[1772635651159,1e-08,90.14,90.08,4.33736209]
[1772635651472,1e-08,90.14,90.079,38.85478301]
[1772635651473,1e-08,90.14,90.086,4.33736209]
[1772635651663,1e-08,90.14,90.092,4.33736209]
[1772635652908,1e-08,90.14,90.079,138.76708221]
[1772635652909,1e-08,90.14,90.098,4.33736209]
[1772635653078,1e-08,90.14,90.102,4.33736209]
[1772635653371,0.2,90.17,90.121,0.28432314]
[1772635653571,11.09028601,90.169,90.122,4.33736209]
[1772635654270,0.32202305,90.168,90.101,4.33736209]
[1772635654573,0.28432314,90.167,90.101,4.33736209]
[1772635654773,38.81600105,90.169,90.101,4.33736209]
[1772635654774,15.51460455,90.15,90.101,4.33736209]
[1772635654952,0.14216157,90.138,90.086,11.10050396]
[1772635655154,0.14216157,90.109,90.055,4.33736209]
[1772635655361,0.28432314,90.099,90.055,38.8650657]
[1772635655554,0.28432314,90.107,90.055,11.10425287]
[1772635655871,0.28432314,90.107,90.056,4.33736209]
[1772635656175,0.28432314,90.116,90.056,4.33736209]
[1772635656872,15.51460455,90.1,90.022,4.33736209]
[1772635657076,4.82477569,90.126,90.021,44.43407649]
[1772635657077,0.28432314,90.109,90.029,4.33736209]
[1772635657377,11.09743046,90.111,90.042,0.28432314]
[1772635657558,0.28432314,90.11,90.047,4.33736209]
[1772635657758,0.14216157,90.11,90.047,4.33736209]
[1772635657960,11.09685486,90.116,90.051,4.33736209]
[1772635658155,0.28432314,90.109,90.051,4.33736209]
[1772635658461,11.09685486,90.116,90.051,4.33736209]
[1772635658668,11.09323867,90.145,90.062,0.14216157]
[1772635658970,44.35242416,90.187,90.046,3.69383402]